[Event "*** Titled Tuesday Blitz"]
[Site "Chess.com"]
[Date "2018.09.04"]
[Round "1"]
[White "jncool68"]
[Black "nitpicker"]
[Result "1-0"]
[WhiteElo "2504"]
[BlackElo "2144"]
[TimeControl "180+2"]
[EndTime "13:42:33 PDT"]
[Termination "jncool68 won on time"]

1. e4 {[%clk 0:02:58.9]} 1... c5 {[%clk 0:03:00]} 2. Nf3 {[%clk 0:02:58.8]} 2...
d6 {[%clk 0:03:00.4]} 3. Bb5+ {[%clk 0:02:56.9]} 3... Nd7 {[%clk 0:03:00.1]} 4.
c3 {[%clk 0:02:55.6]} 4... Nf6 {[%clk 0:02:59.4]} 5. Qe2 {[%clk 0:02:54.3]} 5...
e5 {[%clk 0:02:59.1]} 6. O-O {[%clk 0:02:53.1]} 6... a6 {[%clk 0:03:00.2]} 7.
Ba4 {[%clk 0:02:53.4]} 7... b5 {[%clk 0:03:01.1]} 8. Bc2 {[%clk 0:02:53.7]} 8...
Be7 {[%clk 0:02:57.7]} 9. Rd1 {[%clk 0:02:51.9]} 9... Qc7 {[%clk 0:02:57.8]} 10.
d4 {[%clk 0:02:52.3]} 10... c4 {[%clk 0:02:57.1]} 11. Nbd2 {[%clk 0:02:52.4]}
11... Bb7 {[%clk 0:02:56.9]} 12. Nf1 {[%clk 0:02:53.3]} 12... O-O {[%clk
0:02:57.7]} 13. Ng3 {[%clk 0:02:53.9]} 13... g6 {[%clk 0:02:58.1]} 14. Bg5
{[%clk 0:02:34.4]} 14... Kg7 {[%clk 0:02:45.3]} 15. Qd2 {[%clk 0:02:26.7]} 15...
Rfd8 {[%clk 0:01:56.9]} 16. h4 {[%clk 0:02:21.5]} 16... Ng8 {[%clk 0:01:52]} 17.
h5 {[%clk 0:02:21.6]} 17... f6 {[%clk 0:01:47.3]} 18. Be3 {[%clk 0:02:20.8]}
18... d5 {[%clk 0:01:40.5]} 19. hxg6 {[%clk 0:02:19]} 19... hxg6 {[%clk
0:01:40.3]} 20. exd5 {[%clk 0:02:18.1]} 20... Bxd5 {[%clk 0:01:40.8]} 21. Nh4
{[%clk 0:02:18.2]} 21... Bf7 {[%clk 0:01:40.6]} 22. Qe2 {[%clk 0:02:11.4]} 22...
f5 {[%clk 0:01:18]} 23. Nhxf5+ {[%clk 0:02:12]} 23... gxf5 {[%clk 0:01:18.1]}
24. Nxf5+ {[%clk 0:02:13.4]} 24... Kf8 {[%clk 0:01:19.5]} 25. Qg4 {[%clk
0:02:13.4]} 25... Bf6 {[%clk 0:01:16.7]} 26. d5 {[%clk 0:02:09.4]} 26... Nc5
{[%clk 0:01:10.3]} 27. d6 {[%clk 0:02:06.7]} 27... Qc6 {[%clk 0:01:10.5]} 28.
Bg5 {[%clk 0:01:51.6]} 28... Bh8 {[%clk 0:00:48]} 29. Qh4 {[%clk 0:01:35.3]}
29... Ne6 {[%clk 0:00:33.4]} 30. Bxd8 {[%clk 0:01:35.4]} 30... Rxd8 {[%clk
0:00:20.6]} 31. Qxh8 {[%clk 0:01:35.7]} 31... e4 {[%clk 0:00:15.4]} 32. Nd4
{[%clk 0:01:27.2]} 32... Qc5 {[%clk 0:00:13.4]} 33. Nxe6+ {[%clk 0:01:27]} 33...
Bxe6 {[%clk 0:00:14.4]} 34. Bxe4 {[%clk 0:01:25.9]} 34... Qg5 {[%clk 0:00:14.1]}
35. f4 {[%clk 0:01:16.8]} 35... Qg3 {[%clk 0:00:13.3]} 36. Qe5 {[%clk
0:01:10.9]} 36... Qe3+ {[%clk 0:00:03.3]} 37. Kf1 {[%clk 0:01:09.6]} 1-0

[Event "*** Titled Tuesday Blitz"]
[Site "Chess.com"]
[Date "2018.09.04"]
[Round "1"]
[White "Vegan4future"]
[Black "AlexanderL"]
[Result "0-1"]
[WhiteElo "2421"]
[BlackElo "2809"]
[TimeControl "180+2"]
[EndTime "13:42:42 PDT"]
[Termination "AlexanderL won by resignation"]

1. d4 {[%clk 0:02:59.2]} 1... e6 {[%clk 0:03:00.4]} 2. Nf3 {[%clk 0:02:58.4]}
2... c5 {[%clk 0:02:37.9]} 3. g3 {[%clk 0:02:58]} 3... cxd4 {[%clk 0:02:34.9]}
4. Nxd4 {[%clk 0:02:59.9]} 4... d5 {[%clk 0:02:35]} 5. Bg2 {[%clk 0:03:00.8]}
5... e5 {[%clk 0:02:34.1]} 6. Nb3 {[%clk 0:02:59.7]} 6... Be6 {[%clk 0:01:41.8]}
7. O-O {[%clk 0:02:51.9]} 7... Nc6 {[%clk 0:01:38.9]} 8. c3 {[%clk 0:02:44.3]}
8... Nf6 {[%clk 0:01:30.1]} 9. Be3 {[%clk 0:02:42.9]} 9... Be7 {[%clk
0:01:21.4]} 10. Nc5 {[%clk 0:02:38.9]} 10... Bc8 {[%clk 0:01:21.8]} 11. Nb3
{[%clk 0:02:24.8]} 11... O-O {[%clk 0:01:22]} 12. N1d2 {[%clk 0:02:24.2]} 12...
b6 {[%clk 0:01:17.9]} 13. Nf3 {[%clk 0:02:21.6]} 13... Be6 {[%clk 0:01:09]} 14.
Ng5 {[%clk 0:02:18.6]} 14... Bf5 {[%clk 0:01:09.9]} 15. c4 {[%clk 0:02:11.9]}
15... Nb4 {[%clk 0:01:10.8]} 16. cxd5 {[%clk 0:02:10.9]} 16... Nfxd5 {[%clk
0:01:10.9]} 17. Nf3 {[%clk 0:01:59.2]} 17... Nxe3 {[%clk 0:01:10.8]} 18. fxe3
{[%clk 0:02:00.6]} 18... Nc2 {[%clk 0:00:54.3]} 19. Nxe5 {[%clk 0:01:55.4]}
19... Nxe3 {[%clk 0:00:54.5]} 20. Qxd8 {[%clk 0:01:54.6]} 20... Raxd8 {[%clk
0:00:55]} 21. Nc6 {[%clk 0:01:48.9]} 21... Rd7 {[%clk 0:00:51.1]} 22. Rxf5
{[%clk 0:01:31.4]} 22... Nxf5 {[%clk 0:00:51.4]} 23. Bh3 {[%clk 0:01:32.8]}
23... Rc7 {[%clk 0:00:51.7]} 24. Nxa7 {[%clk 0:01:25.1]} 24... Rxa7 {[%clk
0:00:42.3]} 25. Bxf5 {[%clk 0:01:25.8]} 25... Bf6 {[%clk 0:00:44.2]} 26. a4
{[%clk 0:01:18.5]} 26... Bxb2 {[%clk 0:00:44.2]} 27. Rb1 {[%clk 0:01:19.9]}
27... Be5 {[%clk 0:00:43.6]} 28. Nd2 {[%clk 0:01:13.1]} 28... Rxa4 {[%clk
0:00:43.4]} 29. Nf3 {[%clk 0:01:14.4]} 29... Bd6 {[%clk 0:00:42.6]} 30. Kg2
{[%clk 0:01:14.1]} 30... Bc5 {[%clk 0:00:43.3]} 31. h4 {[%clk 0:01:13.3]} 31...
Re8 {[%clk 0:00:43.8]} 32. Bd3 {[%clk 0:01:12]} 32... g6 {[%clk 0:00:43.8]} 33.
Bb5 {[%clk 0:01:11.1]} 33... Rae4 {[%clk 0:00:44.3]} 34. Bxe8 {[%clk 0:01:11.5]}
34... Rxe2+ {[%clk 0:00:45.3]} 35. Kh3 {[%clk 0:01:13]} 35... Rxe8 {[%clk
0:00:47.1]} 36. Nd2 {[%clk 0:01:12.5]} 36... Re6 {[%clk 0:00:44.1]} 37. Nc4
{[%clk 0:01:13.1]} 37... h5 {[%clk 0:00:44.4]} 38. g4 {[%clk 0:01:12.7]} 38...
hxg4+ {[%clk 0:00:44.9]} 39. Kxg4 {[%clk 0:01:14.5]} 39... Re4+ {[%clk
0:00:45.9]} 40. Kg3 {[%clk 0:01:13.7]} 40... Rxc4 {[%clk 0:00:47.8]} 41. h5
{[%clk 0:01:14.7]} 41... gxh5 {[%clk 0:00:48.1]} 42. Kh3 {[%clk 0:01:16.4]}
42... h4 {[%clk 0:00:48.6]} 43. Rd1 {[%clk 0:01:17.3]} 43... Kf8 {[%clk
0:00:49.6]} 44. Rd8+ {[%clk 0:01:18]} 44... Kg7 {[%clk 0:00:50.7]} 45. Rb8
{[%clk 0:01:19.9]} 45... Kf6 {[%clk 0:00:51.6]} 46. Rb7 {[%clk 0:01:20.7]} 46...
Kg6 {[%clk 0:00:52.5]} 47. Rb8 {[%clk 0:01:21.2]} 47... f6 {[%clk 0:00:50.3]}
48. Rg8+ {[%clk 0:01:21.7]} 48... Kf5 {[%clk 0:00:51.4]} 49. Rb8 {[%clk
0:01:23.2]} 49... Rc3+ {[%clk 0:00:52.2]} 50. Kg2 {[%clk 0:01:22.4]} 50... h3+
{[%clk 0:00:52.9]} 51. Kh1 {[%clk 0:01:23.5]} 51... Rc1+ {[%clk 0:00:52.8]} 52.
Kh2 {[%clk 0:01:24.6]} 52... Bd6+ {[%clk 0:00:54.7]} 53. Kxh3 {[%clk 0:01:26.5]}
53... Bxb8 {[%clk 0:00:55]} 0-1

[Event "*** Titled Tuesday Blitz"]
[Site "Chess.com"]
[Date "2018.09.04"]
[Round "1"]
[White "chesstatour"]
[Black "Fighter008"]
[Result "0-1"]
[WhiteElo "1984"]
[BlackElo "2472"]
[TimeControl "180+2"]
[EndTime "13:42:42 PDT"]
[Termination "Fighter008 won by resignation"]

1. c4 {[%clk 0:02:59.1]} 1... e5 {[%clk 0:03:00.1]} 2. Nc3 {[%clk 0:02:57.5]}
2... Nc6 {[%clk 0:03:00.4]} 3. Nf3 {[%clk 0:02:58.5]} 3... Nf6 {[%clk
0:03:01.4]} 4. d4 {[%clk 0:02:59.9]} 4... exd4 {[%clk 0:02:52.6]} 5. Nxd4 {[%clk
0:03:00.5]} 5... Bc5 {[%clk 0:02:34.5]} 6. Nb3 {[%clk 0:02:58.5]} 6... Bb4
{[%clk 0:02:31.7]} 7. g3 {[%clk 0:02:57.9]} 7... O-O {[%clk 0:02:31.6]} 8. Bg2
{[%clk 0:02:58.3]} 8... Ne5 {[%clk 0:02:31.7]} 9. O-O {[%clk 0:02:45.1]} 9...
Bxc3 {[%clk 0:02:27.2]} 10. bxc3 {[%clk 0:02:45.2]} 10... Nxc4 {[%clk
0:02:26.3]} 11. Qd4 {[%clk 0:02:30.3]} 11... Nd6 {[%clk 0:02:15]} 12. Bf4 {[%clk
0:02:23]} 12... Nf5 {[%clk 0:02:12.8]} 13. Qd3 {[%clk 0:02:06.1]} 13... d5
{[%clk 0:02:09.4]} 14. Rab1 {[%clk 0:01:39.2]} 14... c6 {[%clk 0:02:09.6]} 15.
c4 {[%clk 0:01:31.3]} 15... dxc4 {[%clk 0:02:05.7]} 16. Qxc4 {[%clk 0:01:16.9]}
16... Be6 {[%clk 0:02:05.6]} 17. Qc2 {[%clk 0:01:15.6]} 17... Ne7 {[%clk
0:01:27.9]} 18. Nc5 {[%clk 0:01:01.9]} 18... b6 {[%clk 0:01:22.9]} 19. Nxe6
{[%clk 0:01:02]} 19... fxe6 {[%clk 0:01:24.4]} 20. Rfd1 {[%clk 0:00:53.2]} 20...
Qc8 {[%clk 0:01:23.2]} 21. Bd6 {[%clk 0:00:42.9]} 21... Rf7 {[%clk 0:01:21.1]}
22. Bxe7 {[%clk 0:00:38.2]} 22... Rxe7 {[%clk 0:01:21.9]} 23. Qxc6 {[%clk
0:00:37]} 23... Qxc6 {[%clk 0:01:21.3]} 24. Bxc6 {[%clk 0:00:38]} 24... Rb8
{[%clk 0:01:19.5]} 25. Rd6 {[%clk 0:00:26.7]} 25... Rc8 {[%clk 0:01:06.3]} 26.
Rbd1 {[%clk 0:00:20]} 26... Kf7 {[%clk 0:01:00.6]} 27. Kg2 {[%clk 0:00:19.2]}
27... Rec7 {[%clk 0:00:58.8]} 28. Bf3 {[%clk 0:00:16.9]} 28... Rc2 {[%clk
0:00:54.8]} 29. a4 {[%clk 0:00:17.3]} 29... e5 {[%clk 0:00:56.1]} 30. Bb7 {[%clk
0:00:12.9]} 30... R8c7 {[%clk 0:00:56.8]} 31. Ba6 {[%clk 0:00:13.6]} 31... h6
{[%clk 0:00:46.2]} 32. Bd3 {[%clk 0:00:12.3]} 32... Ra2 {[%clk 0:00:45.4]} 33.
Bc4+ {[%clk 0:00:12.9]} 33... Rxc4 {[%clk 0:00:45.5]} 0-1

[Event "*** Titled Tuesday Blitz"]
[Site "Chess.com"]
[Date "2018.09.04"]
[Round "1"]
[White "MFBerna"]
[Black "Drags95"]
[Result "0-1"]
[WhiteElo "2335"]
[BlackElo "2676"]
[TimeControl "180+2"]
[EndTime "13:42:53 PDT"]
[Termination "Drags95 won on time"]

1. e4 {[%clk 0:03:01.2]} 1... e5 {[%clk 0:03:00.3]} 2. Nf3 {[%clk 0:03:02.3]}
2... Nc6 {[%clk 0:03:00.9]} 3. Bb5 {[%clk 0:03:03.2]} 3... a6 {[%clk 0:03:01.5]}
4. Ba4 {[%clk 0:03:03.8]} 4... Nf6 {[%clk 0:03:02.7]} 5. O-O {[%clk 0:03:04.1]}
5... Be7 {[%clk 0:03:04]} 6. Re1 {[%clk 0:02:59]} 6... b5 {[%clk 0:03:04.3]} 7.
Bb3 {[%clk 0:02:59.6]} 7... O-O {[%clk 0:03:06.2]} 8. c3 {[%clk 0:02:56.4]} 8...
d5 {[%clk 0:03:05.5]} 9. exd5 {[%clk 0:02:58.3]} 9... Nxd5 {[%clk 0:03:06.8]}
10. Nxe5 {[%clk 0:02:58.7]} 10... Nxe5 {[%clk 0:03:08.7]} 11. Rxe5 {[%clk
0:03:00]} 11... c6 {[%clk 0:03:10]} 12. d4 {[%clk 0:03:00.4]} 12... Bd6 {[%clk
0:03:11]} 13. Re1 {[%clk 0:03:01.2]} 13... Qh4 {[%clk 0:03:12.4]} 14. g3 {[%clk
0:03:00.9]} 14... Qh3 {[%clk 0:03:13.8]} 15. Be3 {[%clk 0:03:00.6]} 15... Bg4
{[%clk 0:02:48]} 16. Qd3 {[%clk 0:03:01.1]} 16... Rae8 {[%clk 0:02:31.1]} 17.
Nd2 {[%clk 0:03:00.5]} 17... f5 {[%clk 0:02:18.6]} 18. Qf1 {[%clk 0:02:56.8]}
18... Qh5 {[%clk 0:02:18.7]} 19. f4 {[%clk 0:02:51]} 19... Kh8 {[%clk
0:02:16.1]} 20. Bxd5 {[%clk 0:02:50.1]} 20... cxd5 {[%clk 0:02:18]} 21. Bf2
{[%clk 0:02:14.1]} 21... g5 {[%clk 0:01:57.1]} 22. fxg5 {[%clk 0:02:05.1]} 22...
f4 {[%clk 0:01:54.8]} 23. Rxe8 {[%clk 0:01:55.5]} 23... Rxe8 {[%clk 0:01:56.7]}
24. Re1 {[%clk 0:01:56.9]} 24... Rf8 {[%clk 0:01:52]} 25. Qg2 {[%clk 0:01:15.7]}
25... Qxg5 {[%clk 0:01:07.9]} 26. h4 {[%clk 0:00:41.4]} 26... Qf5 {[%clk
0:01:02.7]} 27. gxf4 {[%clk 0:00:20.3]} 27... Bh3 {[%clk 0:00:57.7]} 28. Qf3
{[%clk 0:00:15]} 28... Rg8+ {[%clk 0:00:58.7]} 29. Kh1 {[%clk 0:00:12.2]} 29...
Bxf4 {[%clk 0:00:46.1]} 30. Be3 {[%clk 0:00:04.9]} 30... Bg2+ {[%clk 0:00:33.9]}
31. Qxg2 {[%clk 0:00:05.8]} 31... Rxg2 {[%clk 0:00:35.4]} 32. Kxg2 {[%clk
0:00:07.1]} 32... Qg4+ {[%clk 0:00:37]} 33. Kf1 {[%clk 0:00:02.8]} 33... Qh3+
{[%clk 0:00:37.5]} 34. Kf2 {[%clk 0:00:03.2]} 34... Qg3+ {[%clk 0:00:38.8]} 0-1

[Event "*** Titled Tuesday Blitz"]
[Site "Chess.com"]
[Date "2018.09.04"]
[Round "1"]
[White "Po6Don"]
[Black "Hamisandwich"]
[Result "1-0"]
[WhiteElo "2100"]
[BlackElo "2482"]
[TimeControl "180+2"]
[EndTime "13:43:00 PDT"]
[Termination "Po6Don won by resignation"]

1. e4 {[%clk 0:02:56.4]} 1... d6 {[%clk 0:03:00.5]} 2. d4 {[%clk 0:02:55.5]}
2... Nf6 {[%clk 0:02:59.6]} 3. Nc3 {[%clk 0:02:55.4]} 3... e5 {[%clk 0:02:56.6]}
4. Nf3 {[%clk 0:02:54.8]} 4... Nbd7 {[%clk 0:02:55.6]} 5. Rg1 {[%clk 0:02:55.1]}
5... g6 {[%clk 0:02:53.2]} 6. g4 {[%clk 0:02:53.9]} 6... c6 {[%clk 0:02:53.1]}
7. g5 {[%clk 0:02:51]} 7... Nh5 {[%clk 0:02:53.1]} 8. Be3 {[%clk 0:02:49.4]}
8... b5 {[%clk 0:02:41.3]} 9. Qd2 {[%clk 0:02:23.9]} 9... Qc7 {[%clk 0:02:21.7]}
10. O-O-O {[%clk 0:02:14.5]} 10... Bg7 {[%clk 0:02:04.2]} 11. dxe5 {[%clk
0:02:00]} 11... dxe5 {[%clk 0:02:01.3]} 12. Bxb5 {[%clk 0:01:24.2]} 12... cxb5
{[%clk 0:01:54.5]} 13. Nxb5 {[%clk 0:01:25.6]} 13... Qc6 {[%clk 0:01:51.9]} 14.
Nd6+ {[%clk 0:01:16.5]} 14... Kf8 {[%clk 0:01:47.7]} 15. Qb4 {[%clk 0:00:47.8]}
15... Kg8 {[%clk 0:01:46.6]} 16. Rd3 {[%clk 0:00:14.1]} 16... Bf8 {[%clk
0:01:06.3]} 17. Rgd1 {[%clk 0:00:12.9]} 17... Rb8 {[%clk 0:00:44.6]} 18. Qd2
{[%clk 0:00:11.8]} 18... Ng7 {[%clk 0:00:39.2]} 19. Nxc8 {[%clk 0:00:07.4]}
19... Rxc8 {[%clk 0:00:41.1]} 20. Rc3 {[%clk 0:00:07.6]} 20... Qa6 {[%clk
0:00:39.1]} 21. Rxc8 {[%clk 0:00:07.7]} 21... Qxc8 {[%clk 0:00:41]} 22. Qxd7
{[%clk 0:00:07.6]} 22... Qb8 {[%clk 0:00:32]} 23. Qd8 {[%clk 0:00:07.8]} 23...
Qxd8 {[%clk 0:00:26.8]} 24. Rxd8 {[%clk 0:00:08.2]} 24... Ne6 {[%clk 0:00:28.7]}
25. Ra8 {[%clk 0:00:08.4]} 25... Kg7 {[%clk 0:00:25.2]} 26. Nxe5 {[%clk
0:00:09]} 26... Bd6 {[%clk 0:00:26.4]} 27. Rxh8 {[%clk 0:00:07.9]} 27... Bxe5
{[%clk 0:00:27.4]} 28. Ra8 {[%clk 0:00:08.6]} 28... Bxh2 {[%clk 0:00:27.8]} 29.
c4 {[%clk 0:00:08.3]} 29... Bd6 {[%clk 0:00:26.3]} 30. Kc2 {[%clk 0:00:08.7]}
1-0

[Event "*** Titled Tuesday Blitz"]
[Site "Chess.com"]
[Date "2018.09.04"]
[Round "1"]
[White "chito89"]
[Black "VeraNebolsina"]
[Result "1/2-1/2"]
[WhiteElo "2716"]
[BlackElo "2393"]
[TimeControl "180+2"]
[EndTime "13:43:07 PDT"]
[Termination "Game drawn by repetition"]

1. e4 {[%clk 0:02:59.7]} 1... c5 {[%clk 0:02:56.7]} 2. Nf3 {[%clk 0:03:00.3]}
2... d6 {[%clk 0:02:57]} 3. Bb5+ {[%clk 0:02:58.5]} 3... Bd7 {[%clk 0:02:55.9]}
4. c4 {[%clk 0:02:58.7]} 4... g6 {[%clk 0:02:51.7]} 5. Nc3 {[%clk 0:02:50.1]}
5... Bg7 {[%clk 0:02:52]} 6. O-O {[%clk 0:02:48.8]} 6... Nc6 {[%clk 0:02:48.9]}
7. Bxc6 {[%clk 0:02:28.4]} 7... Bxc6 {[%clk 0:02:46.8]} 8. d4 {[%clk 0:02:29.3]}
8... cxd4 {[%clk 0:02:36]} 9. Nxd4 {[%clk 0:02:30.6]} 9... Nf6 {[%clk
0:02:36.6]} 10. Re1 {[%clk 0:02:30.9]} 10... O-O {[%clk 0:02:36.9]} 11. b3
{[%clk 0:02:17.2]} 11... Qa5 {[%clk 0:02:03.3]} 12. Bb2 {[%clk 0:02:16]} 12...
Rfd8 {[%clk 0:01:58.2]} 13. Nd5 {[%clk 0:02:12.1]} 13... Bxd5 {[%clk 0:01:37]}
14. exd5 {[%clk 0:02:09.3]} 14... Re8 {[%clk 0:01:38]} 15. a3 {[%clk 0:01:49.5]}
15... Qc7 {[%clk 0:01:35]} 16. Rc1 {[%clk 0:01:44.1]} 16... Qd7 {[%clk 0:01:36]}
17. h3 {[%clk 0:01:43]} 17... a6 {[%clk 0:01:35.8]} 18. Qd2 {[%clk 0:01:35.1]}
18... Rac8 {[%clk 0:01:34.4]} 19. a4 {[%clk 0:01:31.9]} 19... h5 {[%clk
0:01:26.7]} 20. Re2 {[%clk 0:01:30.4]} 20... Kh7 {[%clk 0:01:24.1]} 21. Rce1
{[%clk 0:01:31.1]} 21... Bh6 {[%clk 0:01:23.9]} 22. Qd3 {[%clk 0:01:30.5]} 22...
Ng8 {[%clk 0:00:57.2]} 23. Qf3 {[%clk 0:01:22.8]} 23... Rf8 {[%clk 0:00:53.9]}
24. Re4 {[%clk 0:01:21.3]} 24... e5 {[%clk 0:00:46.9]} 25. dxe6 {[%clk
0:01:02.7]} 25... fxe6 {[%clk 0:00:47.8]} 26. Qd3 {[%clk 0:01:03.3]} 26... e5
{[%clk 0:00:47.8]} 27. Nf3 {[%clk 0:01:04.3]} 27... Rcd8 {[%clk 0:00:37.2]} 28.
Rd1 {[%clk 0:00:58.3]} 28... Nf6 {[%clk 0:00:35]} 29. Re2 {[%clk 0:00:31.3]}
29... e4 {[%clk 0:00:35.7]} 30. Rxe4 {[%clk 0:00:32.3]} 30... Nxe4 {[%clk
0:00:36.3]} 31. Qxe4 {[%clk 0:00:34.1]} 31... Rde8 {[%clk 0:00:35.1]} 32. Qd3
{[%clk 0:00:29.3]} 32... Bf4 {[%clk 0:00:27.4]} 33. Ba3 {[%clk 0:00:28.6]} 33...
Qf5 {[%clk 0:00:25.3]} 34. Qf1 {[%clk 0:00:20.6]} 34... Qf6 {[%clk 0:00:21.6]}
35. Qd3 {[%clk 0:00:19.3]} 35... Qf5 {[%clk 0:00:22.3]} 36. Qf1 {[%clk
0:00:20.1]} 36... Qf6 {[%clk 0:00:23.5]} 37. Qd3 {[%clk 0:00:21.2]} 37... Qf5
{[%clk 0:00:24.8]} 38. Qf1 {[%clk 0:00:22.1]} 38... Qf6 {[%clk 0:00:26.1]} 39.
Qd3 {[%clk 0:00:22.8]} 39... Qf5 {[%clk 0:00:27.4]} 1/2-1/2

[Event "*** Titled Tuesday Blitz"]
[Site "Chess.com"]
[Date "2018.09.04"]
[Round "1"]
[White "JammyDodger91"]
[Black "Arm-Akiba"]
[Result "0-1"]
[WhiteElo "2403"]
[BlackElo "2757"]
[TimeControl "180+2"]
[EndTime "13:43:10 PDT"]
[Termination "Arm-Akiba won by resignation"]

1. e4 {[%clk 0:03:00.8]} 1... e5 {[%clk 0:03:00.2]} 2. Nf3 {[%clk 0:03:02.1]}
2... Nc6 {[%clk 0:03:01.1]} 3. Bb5 {[%clk 0:03:03.1]} 3... a6 {[%clk 0:03:02.2]}
4. Ba4 {[%clk 0:03:03.8]} 4... Nf6 {[%clk 0:03:03.3]} 5. O-O {[%clk 0:03:03.8]}
5... Be7 {[%clk 0:03:04.2]} 6. Re1 {[%clk 0:03:04.8]} 6... b5 {[%clk 0:03:05.2]}
7. Bb3 {[%clk 0:03:06.4]} 7... O-O {[%clk 0:03:06.1]} 8. h3 {[%clk 0:03:07.7]}
8... Bb7 {[%clk 0:03:04.2]} 9. d3 {[%clk 0:03:08.6]} 9... d5 {[%clk 0:03:04]}
10. exd5 {[%clk 0:03:09.2]} 10... Nxd5 {[%clk 0:03:05]} 11. Nbd2 {[%clk
0:03:10.5]} 11... Na5 {[%clk 0:02:44.6]} 12. Nxe5 {[%clk 0:02:51]} 12... Nxb3
{[%clk 0:02:44.7]} 13. axb3 {[%clk 0:02:44.7]} 13... c5 {[%clk 0:02:45.1]} 14.
Ndf3 {[%clk 0:02:39.5]} 14... f6 {[%clk 0:02:45]} 15. Ng4 {[%clk 0:02:40.2]}
15... Qd7 {[%clk 0:02:45.2]} 16. d4 {[%clk 0:01:59.1]} 16... Rad8 {[%clk
0:02:37.9]} 17. c4 {[%clk 0:01:57.2]} 17... Nb6 {[%clk 0:02:29.1]} 18. Be3
{[%clk 0:01:48]} 18... h5 {[%clk 0:02:09.8]} 19. Ngh2 {[%clk 0:01:48.1]} 19...
bxc4 {[%clk 0:02:10.3]} 20. dxc5 {[%clk 0:01:47.2]} 20... Nd5 {[%clk 0:02:11.6]}
21. b4 {[%clk 0:01:17.6]} 21... Nxb4 {[%clk 0:02:05.3]} 22. Qxd7 {[%clk
0:01:11.4]} 22... Rxd7 {[%clk 0:02:06.1]} 23. Ra4 {[%clk 0:01:08.3]} 23... Nd3
{[%clk 0:02:03]} 24. Rd1 {[%clk 0:00:53.5]} 24... Nxc5 {[%clk 0:01:42.5]} 25.
Rxd7 {[%clk 0:00:53.1]} 25... Nxd7 {[%clk 0:01:43.5]} 26. Rxc4 {[%clk
0:00:53.5]} 26... Rc8 {[%clk 0:01:44.9]} 27. Rxc8+ {[%clk 0:00:53.8]} 27... Bxc8
{[%clk 0:01:46.8]} 28. Bd4 {[%clk 0:00:51.3]} 28... Bb7 {[%clk 0:01:47.1]} 29.
Nd2 {[%clk 0:00:51]} 29... Kf7 {[%clk 0:01:45.9]} 30. Nhf3 {[%clk 0:00:52.1]}
30... Nc5 {[%clk 0:01:46.1]} 31. Kf1 {[%clk 0:00:28.5]} 31... Nd3 {[%clk
0:01:45.7]} 32. g3 {[%clk 0:00:25.9]} 32... Ke6 {[%clk 0:01:42.1]} 33. Ke2
{[%clk 0:00:26.3]} 33... Nb4 {[%clk 0:01:40.7]} 34. Bc3 {[%clk 0:00:23.8]} 34...
Nd5 {[%clk 0:01:41.7]} 35. Bd4 {[%clk 0:00:21.8]} 35... Bc6 {[%clk 0:01:37.7]}
36. b3 {[%clk 0:00:21.4]} 36... Bb5+ {[%clk 0:01:37.7]} 37. Nc4 {[%clk
0:00:22.8]} 37... Nb4 {[%clk 0:01:29.2]} 38. Nd2 {[%clk 0:00:23.3]} 38... Kd5
{[%clk 0:01:22]} 39. Bc3 {[%clk 0:00:24.3]} 39... Nc6 {[%clk 0:01:17.5]} 40. Kf3
{[%clk 0:00:22.7]} 40... Nd4+ {[%clk 0:01:15.3]} 41. Bxd4 {[%clk 0:00:21.7]}
41... Kxd4 {[%clk 0:01:17.2]} 42. Ne3 {[%clk 0:00:17.6]} 42... Bb4 {[%clk
0:01:10.2]} 43. Ndc4 {[%clk 0:00:14.1]} 43... Kc3 {[%clk 0:01:04.1]} 44. Nb6
{[%clk 0:00:10.7]} 44... Kxb3 {[%clk 0:01:01.7]} 0-1

[Event "*** Titled Tuesday Blitz"]
[Site "Chess.com"]
[Date "2018.09.04"]
[Round "1"]
[White "michaelk123"]
[Black "Ksenia_Legenko"]
[Result "1-0"]
[WhiteElo "2486"]
[BlackElo "2053"]
[TimeControl "180+2"]
[EndTime "13:43:10 PDT"]
[Termination "michaelk123 won by resignation"]

1. c4 {[%clk 0:03:01.6]} 1... e6 {[%clk 0:03:00.4]} 2. g3 {[%clk 0:03:02.5]}
2... d5 {[%clk 0:03:00.4]} 3. Bg2 {[%clk 0:03:03.8]} 3... Nf6 {[%clk 0:03:01.3]}
4. Nf3 {[%clk 0:03:05.1]} 4... Be7 {[%clk 0:03:02.2]} 5. O-O {[%clk 0:03:06.1]}
5... O-O {[%clk 0:03:02.7]} 6. b3 {[%clk 0:03:07.2]} 6... c5 {[%clk 0:03:02.7]}
7. cxd5 {[%clk 0:03:06.2]} 7... exd5 {[%clk 0:03:03.3]} 8. d4 {[%clk 0:02:49.1]}
8... Nc6 {[%clk 0:02:56]} 9. Bb2 {[%clk 0:02:49]} 9... Bg4 {[%clk 0:02:37.4]}
10. Ne5 {[%clk 0:02:49.2]} 10... Bf5 {[%clk 0:02:25.2]} 11. dxc5 {[%clk
0:02:43.9]} 11... Bxc5 {[%clk 0:02:21.6]} 12. Nd2 {[%clk 0:02:33.1]} 12... Re8
{[%clk 0:02:19.1]} 13. Nxc6 {[%clk 0:02:32.1]} 13... bxc6 {[%clk 0:02:19.6]} 14.
Rc1 {[%clk 0:02:34]} 14... Qb6 {[%clk 0:02:17.3]} 15. Nf3 {[%clk 0:02:21.2]}
15... Bg4 {[%clk 0:02:09.1]} 16. Ne5 {[%clk 0:02:02.6]} 16... Bh5 {[%clk
0:02:07.2]} 17. Qc2 {[%clk 0:01:59.5]} 17... Bd6 {[%clk 0:02:00.2]} 18. Nxc6
{[%clk 0:01:47.9]} 18... Rxe2 {[%clk 0:01:55.9]} 19. Qb1 {[%clk 0:01:37.8]}
19... Rae8 {[%clk 0:01:46.7]} 20. Bd4 {[%clk 0:01:34.5]} 20... Qa6 {[%clk
0:01:40.9]} 21. a4 {[%clk 0:01:17.6]} 21... Ba3 {[%clk 0:01:32.5]} 22. Rc3
{[%clk 0:01:10.7]} 22... Ne4 {[%clk 0:01:25.2]} 23. Qd3 {[%clk 0:00:42.9]} 23...
Qb7 {[%clk 0:01:04.4]} 24. Rc2 {[%clk 0:00:42.7]} 24... Rxc2 {[%clk 0:00:47.4]}
25. Qxc2 {[%clk 0:00:44.6]} 25... Bg6 {[%clk 0:00:35]} 26. Na5 {[%clk
0:00:39.2]} 26... Qa6 {[%clk 0:00:22.9]} 27. Qc6 {[%clk 0:00:39.7]} 27... Qxc6
{[%clk 0:00:22.1]} 28. Nxc6 {[%clk 0:00:41.6]} 28... Nd2 {[%clk 0:00:19.8]} 29.
Ra1 {[%clk 0:00:40.6]} 29... Bd6 {[%clk 0:00:14.5]} 30. Bxd5 {[%clk 0:00:41.5]}
30... a6 {[%clk 0:00:12]} 31. b4 {[%clk 0:00:40.6]} 31... h6 {[%clk 0:00:07.5]}
32. b5 {[%clk 0:00:41.5]} 32... axb5 {[%clk 0:00:07.9]} 33. axb5 {[%clk
0:00:42.1]} 33... Be4 {[%clk 0:00:09]} 34. Bxe4 {[%clk 0:00:40.7]} 34... Rxe4
{[%clk 0:00:10]} 35. Kg2 {[%clk 0:00:39.7]} 35... Re8 {[%clk 0:00:09.4]} 36. b6
{[%clk 0:00:38.8]} 36... Nc4 {[%clk 0:00:10.5]} 37. b7 {[%clk 0:00:39.2]} 37...
Bb8 {[%clk 0:00:11.5]} 38. Nxb8 {[%clk 0:00:39.1]} 38... Rxb8 {[%clk 0:00:12]}
39. Ra8 {[%clk 0:00:40.3]} 1-0